bitfinex/quotes_ETHUSD_20240718
["timestamp","ask_amount","ask_price","bid_price","bid_amount"]
[1721310064053,2.87464,3478.7,3477.8,2.4816]
[1721310064240,5.74928,3478.7,3478.6,0.0744235]
[1721310064429,5.74928,3478.7,3477.4,2.3317]
[1721310064430,2.87474,3478.6,3477.4,2.3317]
[1721310064642,3.0,3478.6,3477.7,2.87546]
[1721310064945,0.874836,3479.2,3478.0,4.82119]
[1721310064946,3.749086,3479.2,3478.0,4.82119]
[1721310065250,3.0,3478.9,3478.4,2.3317]
[1721310065417,3.0,3478.9,3478.1,0.07460237]
[1721310065418,5.87452,3478.9,3478.1,0.07460237]
[1721310065621,5.87452,3478.9,3478.0,1.946]
[1721310065622,2.87452,3478.9,3478.5,0.07445927]
[1721310065822,5.87425,3479.2,3477.8,2.3317]
[1721310065823,3.0,3478.8,3477.8,2.3317]
[1721310066048,2.87463,3478.7,3478.6,0.0744235]
[1721310066242,2.87479,3478.6,3477.8,2.3317]
[1721310066629,3.46199,3478.8,3477.9,0.07467394]
[1721310066955,3.2878,3478.7,3477.2,9.71]
[1721310067164,2.87511,3478.2,3477.3,0.07488868]
[1721310067320,2.87511,3478.2,3477.3,0.60898055]
[1721310067520,3.0,3478.1,3477.3,0.60898055]
[1721310068021,3.0,3478.1,3477.3,2.55498055]
[1721310068230,2.87469,3478.7,3477.5,2.87556]
[1721310068231,3.0,3478.6,3477.5,2.87556]
[1721310068446,3.0,3478.6,3477.6,3.51732142]
[1721310068646,2.87481,3478.5,3477.6,0.71412831]
[1721310068853,3.0,3478.4,3477.6,0.07234689]
[1721310069152,3.0,3478.4,3477.2,7.85885]
[1721310069458,3.0,3478.4,3476.6,3.027]
[1721310069459,3.0,3478.4,3477.3,0.07245427]
[1721310069759,2.87564,3477.5,3476.6,2.4732]
[1721310069917,2.87551,3477.7,3476.7,0.07266908]
[1721310070122,3.0,3477.4,3476.7,0.07266908]
[1721310070636,3.0,3477.5,3476.7,0.07266908]
[1721310070829,5.87564,3477.5,3476.1,5.17718]
[1721310071030,2.87588,3477.2,3476.8,0.07027121]
[1721310071354,2.87588,3477.2,3476.1,2.3004]
[1721310071520,0.87516,3477.2,3476.2,0.07048609]
[1721310071718,3.0,3477.5,3476.2,2.94711609]
[1721310071921,3.0,3477.5,3476.4,2.87653]
[1721310072120,3.0,3477.7,3477.0,2.87598]
[1721310072371,14.8232,3478.6,3476.8,2.593]
[1721310072372,17.69795,3478.6,3476.8,2.593]
[1721310072538,14.8232,3478.6,3477.5,2.87554]
[1721310072861,0.728,3478.1,3477.1,5.30562]
[1721310073027,2.87513,3478.1,3477.6,0.06797969]
[1721310073228,2.87539,3477.8,3476.6,2.4297]
[1721310073567,2.87547,3477.7,3476.6,5.30606]
[1721310073731,2.87557,3477.6,3476.7,0.06830188]
[1721310073939,2.87553,3477.7,3476.7,0.06830188]
[1721310074139,2.87568,3477.5,3476.7,0.06830188]
[1721310075123,0.287553,3477.6,3476.7,0.06830188]
[1721310075379,3.0,3477.6,3477.0,2.87598]
[1721310075528,3.0,3477.6,3476.6,2.4297]
[1721310075529,3.0,3477.8,3477.1,2.94405867]
[1721310075730,2.87505,3478.2,3477.1,2.94405867]
[1721310075960,3.0,3478.1,3477.2,2.87587]
[1721310076266,2.87506,3478.2,3477.3,0.06808707]
[1721310076433,3.875,3478.1,3477.3,0.06808707]
[1721310076767,3.0,3478.5,3477.2,2.87587]
[1721310076963,3.0,3478.5,3477.3,0.06808707]
[1721310077172,2.87502,3478.3,3477.3,0.06808707]
[1721310077341,3.0,3478.2,3477.0,2.87597]
[1721310077533,3.0,3478.2,3477.1,0.06815867]
[1721310077847,3.874984,3478.2,3477.1,0.06815867]
[1721310078053,2.87523,3478.0,3477.1,0.06815867]
[1721310078231,3.0,3478.1,3476.9,2.87609]
[1721310078426,3.0,3478.1,3476.8,2.593]
[1721310078427,3.0,3478.1,3477.2,2.94398287]
[1721310078626,0.874984,3478.2,3477.1,2.87588]
[1721310078832,2.8752,3478.1,3477.3,0.06808707]
[1721310079072,3.0,3478.0,3477.2,0.06812287]
[1721310079362,3.0,3478.0,3476.8,2.593]
[1721310079363,3.750034,3478.2,3477.0,2.87598]
[1721310079551,5.87513,3478.1,3477.1,0.06815867]
[1721310079865,2.87529,3477.9,3477.1,0.06815867]
[1721310080054,0.875043,3477.8,3477.1,0.06815867]
[1721310080362,0.875043,3477.8,3477.2,0.06812287]
[1721310080668,3.0,3478.1,3476.6,2.4297]
[1721310080869,3.0,3478.1,3477.3,0.06808707]
[1721310080870,2.9513,3478.0,3477.3,0.06808707]
[1721310081161,2.4013,3477.3,3475.5,2.3098]
[1721310081469,2.8763,3476.7,3475.6,0.06647956]
[1721310081628,2.87637,3476.6,3475.6,0.06647956]
[1721310081835,8.27713,3477.3,3475.6,0.06647956]
[1721310081836,2.87671,3476.2,3475.6,0.06647956]
[1721310082101,2.87662,3476.3,3475.6,0.06647956]
[1721310082271,2.87662,3476.3,3475.1,2.8776]
[1721310082768,2.87662,3476.3,3475.2,0.0666229]
[1721310082945,2.87662,3476.3,3475.2,2.87752]
[1721310083150,0.6328358,3476.2,3475.3,0.06658707]
[1721310084537,0.6328358,3476.2,3475.2,2.87752]
[1721310084879,0.6328358,3476.2,3475.3,0.06658707]
[1721310085378,0.6328358,3476.2,3475.3,2.94402707]
[1721310085559,3.575258,3476.5,3475.3,0.06658707]
[1721310085875,2.4013,3477.3,3475.4,2.87734]
[1721310085876,2.87639,3476.6,3475.4,2.87734]
[1721310086047,2.87639,3476.6,3475.2,2.87752]
[1721310086249,6.16382,3477.1,3475.5,0.06674763]
[1721310086250,2.87662,3476.3,3475.5,0.06674763]
[1721310086447,3.0,3476.2,3475.3,0.0668193]
[1721310086666,3.0,3476.2,3475.6,0.0667118]
[1721310086847,0.587662,3476.1,3475.1,2.87761]
[1721310087037,0.587662,3476.1,3475.7,0.06667597]
[1721310087273,0.587662,3476.1,3475.1,2.87761]
[1721310087478,0.587662,3476.1,3475.4,2.87736]
[1721310087682,3.0,3476.6,3475.2,0.06685514]
[1721310087974,3.0,3476.6,3475.3,2.94490982]
[1721310088476,3.0,3476.6,3475.7,2.87711]
[1721310088786,3.0,3476.6,3475.8,2.94432222]
[1721310088941,3.0,3476.6,3475.8,0.06729222]
[1721310089139,3.0,3476.6,3475.9,2.87694]
[1721310089367,3.0,3476.6,3475.9,2.9441964]
[1721310089562,4.028,3476.6,3475.9,0.0672564]
[1721310089747,4.028,3476.6,3475.5,2.87725]
[1721310089951,4.028,3476.6,3476.0,0.06722057]
[1721310090150,4.028,3476.6,3475.5,2.87725]
[1721310090151,4.028,3476.6,3475.5,2.87722]
[1721310090400,2.87645,3476.5,3475.3,2.87737]
[1721310090545,4.028,3476.6,3475.0,1.947]
[1721310090546,1.706076,3476.4,3475.0,1.947]
[1721310090738,3.0,3476.6,3475.5,2.87721]
[1721310090961,3.0,3476.6,3475.4,1.947]
[1721310091342,2.87661,3476.4,3475.2,2.87747]
[1721310091586,5.87663,3476.3,3474.9,5.30814]
[1721310091742,2.87692,3476.0,3474.9,2.4304]
[1721310091939,0.575364,3475.9,3474.9,2.4304]
[1721310092144,3.575364,3475.9,3474.9,5.30817]
[1721310092457,3.575364,3475.9,3475.3,2.87738]
[1721310092662,2.2884,3476.6,3474.9,5.30815]
[1721310092663,2.87672,3476.2,3474.9,5.30815]
[1721310092855,3.0,3476.4,3474.9,5.30815]
[1721310092856,5.87683,3476.1,3474.9,5.30815]
[1721310093168,3.0,3476.0,3475.2,2.8775]
[1721310093379,3.0,3476.0,3475.3,2.87739]
[1721310093578,2.87669,3476.3,3475.1,4.82453]
[1721310093758,2.87703,3475.8,3474.7,4.8249]
[1721310094294,2.87703,3475.8,3474.7,2.8779]
[1721310094807,2.87695,3475.9,3474.8,2.87784]
[1721310094957,3.0,3475.8,3474.7,2.8779]
[1721310095158,2.2581,3475.7,3474.4,2.4354]
[1721310095377,2.87737,3475.4,3474.4,2.4354]
[1721310095577,3.690769,3475.6,3474.4,5.31358]
[1721310095800,2.8773,3475.5,3474.4,5.31358]
[1721310097319,0.813509,3475.6,3474.5,2.87809]
[1721310097600,3.813509,3475.6,3474.8,2.87784]
[1721310097900,7.28,3476.0,3475.3,2.8774]
[1721310098064,2.87641,3476.6,3475.4,2.87732]
[1721310098065,3.0,3475.9,3475.4,2.87732]
[1721310098260,7.28,3476.6,3475.3,2.3458]
[1721310098467,7.28,3476.6,3475.7,2.87705]
[1721310098694,7.28,3476.6,3475.9,2.87693]
[1721310098897,7.28,3477.2,3475.3,2.3458]
[1721310099107,1.015577,3477.2,3476.3,2.87659]
[1721310099427,7.28,3477.8,3476.6,2.87637]
[1721310099697,7.28,3477.8,3476.7,2.87626]
[1721310100362,7.28,3477.8,3477.0,2.87603]
[1721310100559,7.28,3477.8,3476.8,2.93371035]
[1721310100560,0.874984,3478.2,3476.8,2.87619]
[1721310100814,7.28,3478.4,3476.6,2.87634]
[1721310100815,2.87521,3478.0,3476.6,2.87634]
[1721310101014,2.87538,3477.8,3476.4,2.87652]
[1721310101221,2.87562,3477.5,3476.4,2.87652]
[1721310101433,2.87571,3477.4,3476.1,2.87677]
[1721310101597,2.87571,3477.4,3475.7,2.3808]
[1721310101598,2.87613,3476.9,3475.7,5.25789]
[1721310101923,0.57521,3476.8,3475.8,2.87703]
[1721310102539,3.0,3477.2,3476.0,2.87686]
[1721310102695,2.87587,3477.2,3476.0,2.87686]
[1721310102896,3.0,3477.1,3476.1,2.87675]
[1721310103096,3.0,3477.1,3476.2,2.87669]
[1721310103296,3.0,3477.3,3476.2,2.87669]
[1721310103540,0.87514,3477.2,3476.4,2.87652]
[1721310103704,3.0,3477.5,3476.5,2.87645]
[1721310104208,3.0,3477.5,3475.8,2.87699]
[1721310104209,2.87593,3477.2,3475.8,2.87699]
[1721310104407,5.87596,3477.1,3476.0,2.87685]
[1721310104725,5.87596,3477.1,3475.8,2.87699]
[1721310104726,3.0,3477.1,3476.1,2.94401274]
[1721310104926,3.0,3477.2,3476.1,2.94401274]
[1721310105138,0.587586,3477.1,3476.1,2.94399274]
[1721310105308,0.587586,3477.1,3476.1,2.94401274]
[1721310105692,0.587586,3477.1,3476.2,2.8767]
[1721310105931,0.587586,3477.1,3476.3,0.06712608]
[1721310106130,3.0,3477.5,3476.3,2.94373608]
[1721310106333,2.3118,3477.6,3476.5,2.87639]
[1721310106528,10.15521,3478.0,3476.8,2.8762]
[1721310106733,1.1029954,3478.1,3477.1,2.87594]
[1721310106929,2.87513,3478.1,3476.9,2.94296754]
[1721310107145,2.87513,3478.1,3477.2,0.06679645]
[1721310107437,2.4921,3478.3,3477.3,0.06676065]
[1721310107438,2.87505,3478.2,3477.3,0.06676065]
[1721310107729,2.4921,3478.3,3477.3,0.06676065]
[1721310107730,2.87513,3478.1,3477.3,0.06676065]
[1721310107893,2.87513,3478.1,3477.0,2.87603]
[1721310108098,0.536723,3478.0,3477.0,2.87603]
[1721310108298,0.536723,3478.0,3476.7,7.83566]
[1721310108299,3.411943,3478.0,3477.1,0.0663861]
[1721310108502,3.0,3477.9,3476.8,2.87614]
[1721310108740,3.0,3477.9,3477.1,2.87593]
[1721310108937,0.536723,3478.0,3477.1,2.87593]
[1721310109239,3.0,3478.2,3477.3,2.87577]
[1721310109427,5.8748,3478.5,3477.2,0.06631529]
[1721310109629,5.8748,3478.5,3477.4,0.0662437]
[1721310109927,5.8748,3478.5,3477.2,2.87581]
[1721310110128,5.8748,3478.5,3477.3,2.87579]
[1721310110330,1.602945,3478.4,3477.3,2.94206212]
[1721310110839,1.602945,3478.4,3477.3,0.06627212]
[1721310111139,2.87526,3478.0,3477.3,0.06627212]
[1721310111340,3.0,3477.9,3476.8,2.8762]
[1721310111538,2.8751,3478.2,3476.8,2.8762]
[1721310111539,3.0,3478.1,3477.1,2.87595]
[1721310111760,0.58751,3478.0,3477.1,2.87595]
[1721310112049,0.58751,3478.0,3477.2,0.06626739]
[1721310112221,3.0,3478.1,3477.3,2.93329977]
[1721310112433,3.0,3478.3,3477.6,2.87554]
[1721310112768,7.28,3478.6,3477.7,2.87539]
[1721310112911,7.28,3478.6,3478.0,2.87513]
[1721310113243,7.28,3478.6,3478.1,0.06594529]
[1721310113978,7.28,3479.2,3478.2,2.87504]
[1721310114176,1.245534,3479.1,3478.2,0.06590951]
[1721310114454,2.87431,3479.1,3477.9,2.87523]
[1721310114755,3.0,3479.1,3477.9,2.87523]
[1721310114926,3.0,3479.1,3478.1,2.87508]
[1721310115363,3.0,3479.1,3478.2,0.06590951]
[1721310116048,3.0,3479.3,3478.2,0.06590951]
[1721310116247,0.817529,3479.2,3478.4,2.87486]
[1721310116419,0.817529,3479.2,3478.2,0.06590951]
[1721310116420,5.87387,3479.7,3478.5,2.87479]
[1721310116620,2.87389,3479.6,3478.5,2.94059219]
[1721310116839,3.0,3479.5,3478.5,2.94059219]
[1721310117361,5.87402,3479.5,3478.5,0.06580219]
[1721310117710,5.87402,3479.5,3478.3,2.87495]
[1721310117913,0.587402,3479.4,3478.4,0.06583796]
[1721310118113,0.587402,3479.4,3478.4,2.87485]
[1721310118420,0.587402,3479.4,3478.2,2.87501]
[1721310118619,0.587402,3479.4,3478.5,0.06580219]
[1721310119160,0.587402,3479.4,3478.3,2.87494]
[1721310119344,0.6461422,3479.3,3478.6,0.06576642]
[1721310119547,0.6461422,3479.3,3478.3,2.87494]
[1721310119729,0.6461422,3479.3,3478.7,0.06573065]
[1721310119916,2.87427,3479.2,3478.1,2.87508]
[1721310120245,3.6461422,3479.3,3477.7,4.9187]
[1721310120246,3.6461422,3479.3,3478.4,2.87483]
[1721310120412,0.36461422,3479.2,3478.5,2.87479]
[1721310120612,3.0,3479.2,3478.5,2.94024782]
[1721310121057,0.6461422,3479.3,3478.5,2.94024782]
[1721310121546,0.6461422,3479.3,3478.5,0.06545782]
[1721310121756,0.6461422,3479.3,3478.0,2.87516]
[1721310121757,2.87427,3479.2,3478.0,2.87516]
[1721310121977,2.87427,3479.2,3477.8,2.87532]
[1721310121978,2.87427,3479.2,3478.1,2.87513]
[1721310122260,3.0,3479.1,3478.2,2.87502]
[1721310122463,0.3,3479.0,3478.2,2.94058515]
[1721310123075,0.3,3479.0,3478.2,0.06556515]
[1721310123359,0.3,3479.0,3477.8,2.87534]
[1721310123542,3.3,3479.0,3478.0,2.87515]
[1721310123741,0.617438,3478.9,3477.7,4.9187]
[1721310123948,0.3,3479.0,3478.2,2.87503]
[1721310124142,3.0,3479.2,3478.4,2.87484]
[1721310124344,3.0,3479.2,3478.3,0.06531604]
[1721310124668,7.28,3479.8,3478.5,0.06524449]
[1721310124669,2.87439,3479.0,3478.5,0.06524449]
[1721310124968,2.87439,3479.0,3477.8,5.47332]
[1721310124969,2.87439,3479.0,3478.4,0.06528026]
[1721310125152,3.55,3479.7,3477.4,2.87563]
[1721310125153,2.87463,3478.7,3477.4,2.87563]
[1721310125355,2.87475,3478.6,3477.4,2.87563]
[1721310125541,2.87485,3478.5,3477.3,2.87578]
[1721310125724,3.0,3478.6,3477.4,2.87564]
[1721310125919,3.0,3478.6,3477.5,0.0656023]
[1721310126144,0.874927,3478.5,3477.6,2.87554]
[1721310126450,0.874927,3478.5,3477.1,2.3693]
[1721310126451,3.749797,3478.5,3477.7,0.06553073]
[1721310126637,3.0,3478.4,3477.7,0.06553073]
[1721310126826,3.0,3478.4,3477.2,2.87587]
[1721310127030,3.0,3478.4,3477.3,0.06567389]
[1721310127242,0.6749797,3478.3,3477.3,0.06567389]
[1721310127427,2.87552,3477.7,3477.3,0.06567389]
[1721310127638,2.87552,3477.7,3476.6,2.87637]
[1721310127831,2.87552,3477.7,3476.4,2.3693]
[1721310127832,3.0,3477.6,3476.5,2.87639]
[1721310128028,5.87546,3477.7,3476.6,2.94227451]
[1721310128357,2.87568,3477.5,3476.6,0.06592451]
[1721310128522,3.875115,3477.4,3476.4,2.3693]
[1721310128924,3.875115,3477.4,3476.5,0.06596033]
[1721310128925,6.750835,3477.4,3476.5,0.06596033]
[1721310129154,2.87596,3477.1,3476.5,0.06596033]
[1721310129476,3.0,3477.0,3476.0,2.87686]
[1721310129640,3.0,3477.0,3475.6,2.598]
[1721310129641,5.87604,3477.0,3476.6,0.06592451]
[1721310129839,5.87604,3477.0,3475.6,2.598]
[1721310129840,2.87625,3476.8,3475.7,2.87705]
[1721310130235,0.587604,3476.9,3475.8,0.06621106]
[1721310130420,3.587604,3476.9,3475.8,0.06621106]
[1721310130621,3.587604,3476.9,3475.9,2.87694]
[1721310130862,3.587604,3476.9,3476.0,0.06613941]
[1721310131079,0.6463644,3476.8,3476.0,0.06613941]
[1721310131432,3.0,3476.9,3476.0,2.94298941]
[1721310131679,3.750825,3477.4,3476.2,2.8767]
[1721310131837,3.0,3477.3,3476.2,2.8767]
[1721310132212,3.0,3477.3,3476.3,0.06665461]
[1721310132572,3.0,3477.3,3476.5,2.87645]
[1721310132728,3.0,3477.5,3476.6,2.87636]
[1721310132934,3.0,3477.7,3476.7,0.06651136]
[1721310133375,5.87547,3477.7,3476.7,0.06651136]
[1721310133580,5.87547,3477.7,3476.5,0.29431046]
[1721310133733,5.87547,3477.7,3476.8,0.06647555]
[1721310133935,0.829627,3477.6,3476.0,2.87683]
[1721310134136,0.829627,3477.6,3476.9,0.06643974]
[1721310134387,5.75208,3477.0,3476.9,0.06643974]
[1721310134666,5.75208,3477.0,3475.7,2.4937]
[1721310134667,2.8763,3476.7,3475.7,2.4937]
[1721310134827,5.4437,3477.0,3475.3,2.87742]
[1721310135031,3.54437,3476.9,3475.8,0.06679132]
[1721310135250,3.54437,3476.9,3474.9,2.87775]
[1721310135251,4.38217,3476.9,3474.9,2.87775]
[1721310135533,4.38217,3476.9,3474.7,2.87792]
[1721310135534,2.87684,3476.1,3475.0,0.06714067]
[1721310135733,2.86884,3476.1,3475.0,0.06714067]
[1721310136028,2.86884,3476.1,3474.6,5.18581]
[1721310136029,2.87719,3475.7,3474.6,2.3078]
[1721310136252,2.87728,3475.5,3475.1,0.06720807]
[1721310136432,2.87728,3475.5,3474.4,2.87816]
[1721310136644,2.87728,3475.5,3475.2,0.06717223]
[1721310136961,0.287719,3475.6,3474.6,2.87797]
[1721310137170,0.287719,3475.6,3475.3,0.06723967]
[1721310137171,2.87729,3475.5,3475.3,0.06723967]
[1721310137328,2.87736,3475.4,3474.1,5.14159]
[1721310137533,2.8775,3475.3,3474.2,0.067634]
[1721310137755,5.87745,3475.3,3474.2,0.067634]
[1721310137958,2.87767,3475.1,3473.9,2.87858]
[1721310138160,3.0,3475.2,3474.3,0.06759814]
[1721310138161,2.87753,3475.2,3474.3,0.06759814]
[1721310138365,2.87778,3474.9,3474.0,0.575732]
[1721310138565,2.87795,3474.7,3474.4,0.06756229]
[1721310138731,2.87805,3474.6,3473.3,2.87908]
[1721310138938,2.87805,3474.6,3473.1,7.87285]
[1721310138939,2.87825,3474.4,3473.2,2.87918]
[1721310139133,0.875637,3474.4,3473.4,2.94693095]
[1721310139363,2.87813,3474.5,3473.3,0.59543483]
[1721310139548,5.87813,3474.5,3473.4,0.06792095]
[1721310139755,2.87813,3474.5,3473.4,2.94693095]
[1721310139958,2.87833,3474.3,3473.4,0.06792095]
[1721310140156,0.875646,3474.2,3473.4,0.06792095]
[1721310140358,3.875646,3474.2,3473.4,0.06792095]
[1721310140572,2.87877,3473.8,3472.9,0.1257741]
[1721310140778,2.3154,3474.0,3472.9,0.1257741]
[1721310140977,2.87891,3473.6,3473.0,0.06806447]
[1721310141137,2.8787,3473.8,3473.0,0.06806447]
[1721310141473,0.55,3473.9,3473.0,0.06806447]
[1721310141474,2.87924,3473.2,3473.0,0.06806447]
[1721310141672,0.575828,3473.1,3473.0,0.06806447]
[1721310141977,3.575828,3473.1,3472.9,0.1257741]
[1721310142135,0.575828,3473.1,3472.9,0.1257741]
[1721310142560,3.0,3473.2,3472.9,0.1257741]
[1721310142785,5.87903,3473.4,3472.9,0.1257741]
[1721310142945,2.87912,3473.3,3472.9,0.1257741]
[1721310143148,3.0,3473.4,3472.9,0.1257741]
[1721310143149,5.87919,3473.2,3472.9,0.1257741]
[1721310143487,2.87935,3473.0,3472.9,0.1257741]
[1721310143652,0.287935,3473.0,3472.9,0.1257741]
[1721310143847,3.287935,3473.0,3472.9,0.1257741]
[1721310144352,2.3949,3473.3,3472.9,0.1257741]
[1721310144353,3.0,3473.2,3472.9,0.1257741]
[1721310144663,2.3949,3473.3,3472.9,0.1257741]
[1721310144879,2.87901,3473.5,3472.9,0.1257741]
[1721310145096,3.55,3473.4,3472.9,0.1257741]
[1721310145597,4.60551,3474.1,3472.9,0.1257741]
[1721310145598,2.93762056,3474.3,3472.9,0.1257741]
[1721310145894,3.20298609,3474.2,3473.0,2.87935]
[1721310146092,2.87846,3474.1,3472.9,0.1257741]
[1721310146395,3.20304609,3474.2,3473.0,0.06915691]
[1721310146585,0.90189367,3474.1,3473.0,0.37659301]
[1721310146960,2.93762056,3474.3,3473.0,0.37659301]
[1721310147185,0.00489569,3648.0,3473.7,2.8787]
[1721310147186,10.15779,3474.9,3473.7,2.8787]
[1721310147386,2.4331,3475.0,3473.8,2.87868]
[1721310147581,2.4331,3475.0,3473.9,2.87858]
[1721310147778,2.4331,3475.0,3474.0,0.06877231]
[1721310148210,5.3108,3475.0,3474.0,0.06877231]
[1721310148427,0.53108,3474.9,3474.0,0.06877231]
[1721310148564,0.53108,3474.9,3473.4,2.87897]
[1721310148767,2.87802,3474.7,3473.4,2.87897]
[1721310148962,3.0,3474.6,3473.2,2.87918]
[1721310149283,3.0,3474.6,3472.9,3.0051541]
[1721310149284,2.87811,3474.5,3473.3,0.06889229]
[1721310149597,3.55,3474.4,3473.3,0.06889229]
[1721310149801,2.87828,3474.3,3473.3,0.06889229]
[1721310150002,3.930639,3474.2,3473.3,0.06889229]
[1721310150534,3.0,3474.2,3473.4,2.87894]
[1721310150729,3.0,3474.5,3473.4,2.87894]
[1721310151026,5.87812,3474.5,3473.5,0.06882054]
[1721310151230,5.87812,3474.5,3472.9,3.0051941]
[1721310151231,2.87841,3474.2,3472.9,3.0051941]
[1721310151407,2.87845,3474.1,3473.0,0.06899993]
[1721310151725,0.575679,3474.0,3473.1,2.87921]
[1721310151878,3.0,3474.1,3473.1,2.87921]
[1721310152223,2.87846,3474.1,3473.2,0.06894109]
[1721310152519,2.87846,3474.1,3472.9,3.0051841]
[1721310152677,2.87846,3474.1,3473.3,0.06890521]
[1721310152678,3.0,3474.0,3473.3,0.06890521]
[1721310152880,3.0,3474.0,3472.9,3.0051841]
[1721310153116,3.875681,3474.0,3473.4,0.06889519]
[1721310153413,2.87861,3473.9,3472.9,0.1257741]
[1721310153626,3.0,3473.8,3472.9,0.1257741]
[1721310153775,3.0,3473.8,3473.0,0.06900734]
[1721310153981,3.875681,3474.0,3473.0,0.06900734]
[1721310154204,0.875681,3474.0,3473.0,2.94834734]
[1721310154410,0.875681,3474.0,3473.0,3.54371048]
[1721310154705,3.0,3474.2,3473.2,2.87917]
[1721310154946,2.87704,3475.8,3473.4,2.87896]
[1721310154947,3.0,3474.3,3473.4,2.87896]
[1721310155099,2.87803,3474.6,3473.4,2.87896]
[1721310155434,4.315803,3474.5,3473.5,2.94775718]
[1721310155634,5.31081,3475.0,3473.5,2.94775718]
[1721310155635,2.4331,3475.0,3473.9,2.87855]
[1721310155798,7.28,3475.2,3473.0,0.59536314]
[1721310155799,2.87759,3475.2,3474.0,2.87846]
[1721310155995,2.87759,3475.2,3474.1,0.06862197]
[1721310156314,3.453123,3475.1,3474.1,0.06862197]
[1721310156634,0.575503,3475.1,3474.1,0.06862197]
[1721310156799,2.87754,3475.2,3474.1,0.06862197]
[1721310157206,0.2878,3475.4,3474.1,0.06862197]
[1721310157405,2.4636,3475.5,3473.7,5.35637]
[1721310157406,2.87784,3474.9,3473.7,5.35637]
[1721310157735,2.87766,3475.1,3473.8,0.06860586]
[1721310157736,2.87788,3474.8,3473.8,0.06860586]
[1721310157934,2.87795,3474.7,3473.8,0.06860586]
[1721310158121,2.87803,3474.6,3473.8,0.06860586]
[1721310158430,3.575583,3474.7,3473.8,0.06860586]
[1721310158734,2.87842,3474.2,3473.8,0.06860586]
[1721310159125,3.0,3474.1,3473.2,2.87917]
[1721310159446,3.0,3474.3,3473.3,0.06655926]
[1721310159601,0.832724,3474.2,3473.0,5.35005]
[1721310159802,0.832724,3474.2,3473.4,0.06652339]
[1721310160003,2.87844,3474.1,3473.0,5.35004]
[1721310160218,0.832724,3474.2,3473.0,5.35004]
[1721310160219,3.0,3474.0,3473.1,2.94589103]
[1721310160542,2.8785,3474.1,3473.1,0.06663103]
[1721310160734,3.5496624,3474.0,3473.1,0.06663103]
[1721310161081,2.87861,3473.9,3473.1,0.06663103]
[1721310161202,0.6711224,3474.0,3473.1,0.06663103]
[1721310161516,0.6711224,3474.0,3473.1,2.94589103]
[1721310162135,2.87844,3474.1,3473.1,0.06663103]
[1721310162514,0.832724,3474.2,3473.1,2.94590103]
[1721310162710,3.0,3474.3,3473.3,2.87909]
[1721310162914,5.87835,3474.3,3473.1,0.06663103]
[1721310163135,3.0,3474.2,3473.4,0.06652339]
[1721310163306,3.0,3474.2,3473.2,0.06659514]
[1721310163507,2.87848,3474.1,3473.5,0.06648195]
[1721310163728,0.875683,3474.0,3473.0,5.35005]
[1721310164034,3.875683,3474.0,3473.6,0.06644607]
[1721310164207,3.875683,3474.0,3473.1,2.87925]
[1721310164208,0.875683,3474.0,3473.1,2.87925]
[1721310164408,5.87836,3474.2,3473.7,0.0665339]
[1721310164607,2.87849,3474.1,3473.0,2.4707]
[1721310164872,3.0,3474.0,3473.0,2.4707]
[1721310165137,2.8786,3473.9,3473.1,0.06674916]
[1721310165350,3.0,3474.0,3473.1,0.06674916]
[1721310165351,3.0,3473.8,3473.1,0.06674916]
[1721310165560,3.0,3474.0,3473.1,0.06674916]
[1721310165854,0.575583,3474.7,3473.1,0.06674916]
[1721310165855,3.0,3474.2,3473.1,0.33307149]
[1721310166052,2.87833,3474.3,3473.2,2.87918]
[1721310166221,3.0,3474.4,3473.5,2.87886]
[1721310166423,3.575583,3474.7,3473.6,0.06654577]
[1721310166625,2.8782,3474.4,3473.6,0.06654577]
[1721310166967,3.575638,3474.3,3473.7,0.0665099]
[1721310167264,0.575638,3474.3,3473.6,2.87885]
[1721310167421,3.0,3474.5,3473.4,2.87896]
[1721310167422,3.0,3474.2,3473.4,2.87896]
[1721310167625,3.0,3474.5,3473.4,2.87896]
[1721310167810,3.0,3474.5,3473.5,0.06658164]
[1721310168008,7.28,3474.8,3473.8,2.8786]
[1721310168261,2.87799,3474.7,3473.8,0.29451816]
[1721310168414,7.28,3474.8,3473.5,2.8789]
[1721310168622,10.15792,3474.8,3473.6,2.94539577]
[1721310169570,3.0,3474.7,3473.6,2.94539577]
[1721310169938,2.87816,3474.5,3473.6,0.06654577]
[1721310170255,3.0,3474.4,3473.6,0.06654577]
[1721310170459,2.87808,3474.6,3473.6,0.06654577]
[1721310170460,5.87816,3474.5,3473.6,0.06654577]
[1721310170770,4.481764,3474.5,3473.7,0.0665099]
[1721310170980,3.0,3474.4,3473.7,0.0665099]
[1721310171290,3.0,3474.4,3473.8,0.06647403]
[1721310171586,3.0,3474.4,3473.4,2.87901]
[1721310171939,3.0,3474.4,3473.2,2.87918]
[1721310171940,5.87825,3474.4,3473.5,0.06658164]
[1721310172142,3.9142914,3474.3,3473.5,0.06658164]
[1721310172381,1.0360014,3474.3,3473.0,2.4707]
[1721310172525,3.0,3474.4,3473.6,0.06654577]
[1721310172526,2.87849,3474.1,3473.6,0.06654577]
[1721310172725,2.87849,3474.1,3473.1,2.87926]
[1721310172932,3.0,3474.0,3473.7,0.0665099]
[1721310173269,1.603604,3474.5,3473.0,2.4707]
[1721310173270,3.0,3474.2,3473.0,2.4707]
[1721310173573,2.87829,3474.3,3473.1,0.06672515]
[1721310173774,2.3118,3474.1,3473.1,0.06672515]
[1721310173971,2.87882,3473.7,3473.1,0.06672515]